bitfinex/quotes_SOLUSD_20251201
["timestamp","ask_amount","ask_price","bid_price","bid_amount"]
[1764551803833,12.76274931,128.92,128.88,7.75872671]
[1764551804048,12.76274931,128.92,128.89,3.52]
[1764551804263,12.76274931,128.91,128.9,3.52]
[1764551804426,0.7,128.91,128.9,3.52]
[1764551804632,12.76274931,128.91,128.9,3.52]
[1764551804942,12.76274931,128.91,128.89,3.52]
[1764551805134,20.52070121,128.9,128.89,3.52]
[1764551805342,29.33064613,128.9,128.89,3.52]
[1764551805568,20.52070121,128.9,128.89,3.52]
[1764551806557,12.06274931,128.91,128.89,3.52]
[1764551806734,0.7,128.91,128.89,3.52]
[1764551807065,12.76274931,128.91,128.89,3.52]
[1764551807362,35.95962925,128.92,128.89,3.52]
[1764551807661,12.06274931,128.91,128.89,3.52]
[1764551807963,48.02237856,128.92,128.89,3.52]
[1764551808135,12.76274931,128.91,128.89,3.52]
[1764551808342,12.06274931,128.91,128.9,3.5]
[1764551808543,48.72237856,128.92,128.9,3.5]
[1764551808735,12.06274931,128.91,128.9,3.5]
[1764551809762,35.95962925,128.92,128.9,3.5]
[1764551809763,7.7572188,128.92,128.9,3.5]
[1764551810059,12.06274931,128.93,128.9,3.5]
[1764551810254,12.76274931,128.92,128.9,3.5]
[1764551810759,24.06473892,128.94,128.9,4.18]
[1764551811052,36.12748823,128.94,128.9,4.18]
[1764551811244,12.06274931,128.94,128.9,11.93793654]
[1764551811644,12.06274931,128.94,128.91,0.68]
[1764551813260,12.06274931,128.95,128.91,0.68]
[1764551813441,12.76274931,128.94,128.92,3.5]
[1764551813635,20.51852085,128.94,128.92,3.5]
[1764551813832,28.47161331,128.96,128.92,11.93674316]
[1764551814039,12.16274931,128.96,128.92,11.93674316]
[1764551814445,0.1,128.96,128.93,12.74274931]
[1764551814770,0.1,128.96,128.92,11.25674316]
[1764551814771,7.85442026,128.96,128.94,3.5]
[1764551815089,19.91716957,128.96,128.94,3.5]
[1764551815376,21.57269423,128.95,128.88,12.06274931]
[1764551815588,19.81829452,128.94,128.89,11.2581132]
[1764551815765,12.06274931,128.93,128.89,11.9081132]
[1764551815966,12.06274931,128.91,128.87,16.308864]
[1764551816157,12.06274931,128.9,128.88,3.5]
[1764551816353,12.06274931,128.9,128.85,0.65]
[1764551816354,12.06274931,128.9,128.89,3.5]
[1764551817879,19.82070121,128.9,128.86,8.41022561]
[1764551818076,12.06274931,128.89,128.87,3.5]
[1764551818278,12.06274931,128.89,128.88,3.5]
[1764551818478,8.4573937,128.91,128.88,3.5]
[1764551818677,12.06274931,128.89,128.88,3.5]
[1764551819183,12.76274931,128.89,128.88,3.5]
[1764551820361,12.76274931,128.89,128.84,0.65]
[1764551820563,12.06274931,128.87,128.85,3.5]
[1764551820762,12.06274931,128.88,128.85,3.5]
[1764551820970,12.06274931,128.88,128.85,4.15]
[1764551821301,12.06274931,128.9,128.86,0.65]
[1764551821661,12.06274931,128.87,128.8,38.81790243]
[1764551821967,12.06274931,128.86,128.81,32.52161331]
[1764551822490,12.06274931,128.88,128.82,12.71274931]
[1764551822689,12.06274931,128.91,128.85,12.06274931]
[1764551822870,12.06274931,128.91,128.86,3.5]
[1764551823073,12.06274931,128.91,128.86,4.15]
[1764551823281,19.82024589,128.91,128.87,8.40975789]
[1764551823595,20.51957626,128.92,128.87,8.40975789]
[1764551823778,20.51957626,128.92,128.88,0.65]
[1764551823974,12.76274931,128.91,128.87,8.40975789]
[1764551824180,12.06274931,128.91,128.87,8.40975789]
[1764551824479,20.51957626,128.92,128.88,8.40888833]
[1764551824681,12.06274931,128.91,128.88,8.40888833]
[1764551825404,19.81887182,128.94,128.89,0.65]
[1764551825570,19.81887182,128.94,128.9,3.5]
[1764551825771,0.1,128.96,128.93,12.06274931]
[1764551826071,1.0,129.0,128.95,28.37161331]
[1764551826270,1.0,129.0,128.98,12.06274931]
[1764551826491,1.0,129.0,128.99,8.40253895]
[1764551826689,1.0,129.0,128.99,7.75253895]
[1764551826988,1.0,129.0,128.99,8.40253895]
[1764551827371,1.0,129.0,128.99,20.46528826]
[1764551827574,1.0,129.0,128.99,23.96528826]
[1764551829091,1.0,129.0,128.99,32.77523318]
[1764551830089,1.0,129.0,128.99,29.27523318]
[1764551830293,1.0,129.0,128.99,40.27415226]
[1764551830598,21.5147517,129.0,128.92,8.80994492]
[1764551830776,12.06274931,128.98,128.93,3.5]
[1764551830975,12.06274931,128.97,128.94,3.5]
[1764551831274,8.45290541,128.99,128.95,16.308864]
[1764551831485,12.76274931,128.99,128.95,16.308864]
[1764551831984,13.06274931,129.0,128.95,29.02161331]
[1764551832187,12.06274931,128.99,128.95,16.958864]
[1764551832386,13.06274931,129.0,128.95,28.37161331]
[1764551832583,12.06274931,128.96,128.89,0.65]
[1764551832791,12.06274931,128.95,128.9,3.5]
[1764551833000,12.06274931,128.95,128.92,16.308864]
[1764551833179,12.06274931,128.93,128.9,11.25774338]
[1764551833586,7.75456917,128.96,128.9,8.40774338]
[1764551833587,8.45456917,128.96,128.9,8.40774338]
[1764551833791,12.06274931,128.95,128.91,3.5]
[1764551834099,0.7,128.95,128.84,7.76156473]
[1764551834301,12.06274931,128.89,128.83,7.96157408]
[1764551834480,12.06274931,128.89,128.84,3.5]
[1764551834680,12.06274931,128.89,128.84,15.56274931]
[1764551834882,12.76274931,128.89,128.84,16.21274931]
[1764551835087,12.76274931,128.89,128.85,7.76096235]
[1764551835502,12.76274931,128.94,128.88,28.37161331]
[1764551835692,12.76274931,128.94,128.89,15.56274931]
[1764551835879,12.06274931,128.92,128.9,3.5]
[1764551836082,12.76274931,128.92,128.91,3.5]
[1764551836382,12.06274931,128.94,128.91,3.5]
[1764551836898,12.06274931,128.94,128.89,0.65]
[1764551837100,12.06274931,128.94,128.9,3.5]
[1764551837305,12.06274931,128.96,128.91,15.56274931]
[1764551837598,12.06274931,128.96,128.91,16.21274931]
[1764551837800,12.06274931,128.99,128.92,0.65]
[1764551838107,12.76274931,128.99,128.94,12.06274931]
[1764551838295,12.76274931,128.99,128.95,3.5]
[1764551838604,0.7,128.98,128.95,11.20147875]
[1764551839207,7.70147875,128.96,128.92,3.5]
[1764551839391,7.70147875,128.93,128.92,3.5]
[1764551839591,7.70147875,128.94,128.92,3.5]
[1764551839804,7.70147875,128.93,128.92,3.5]
[1764551840098,17.21142367,128.93,128.92,3.5]
[1764551840703,8.40147875,128.93,128.92,3.5]
[1764551840903,8.40147875,128.93,128.89,7.70147875]
[1764551841112,7.7557035,128.94,128.91,7.70147875]
[1764551841286,7.7557035,128.94,128.9,11.20147875]
[1764551841490,16.15718225,128.94,128.9,11.20147875]
[1764551841794,8.40147875,128.94,128.9,11.20147875]
[1764551841993,0.7,128.97,128.92,7.70147875]
[1764551842200,8.40147875,128.96,128.92,7.70147875]
[1764551842395,0.7,128.96,128.92,7.70147875]
[1764551842599,8.45309501,128.99,128.94,7.70147875]
[1764551842794,16.15457376,128.99,128.95,3.5]
[1764551842994,0.7,128.98,128.95,3.5]
[1764551843189,0.7,128.98,128.96,3.5]
[1764551843598,0.7,128.98,128.94,7.75511715]
[1764551843599,7.70147875,128.97,128.94,7.75511715]
[1764551843807,8.45339518,128.98,128.96,3.5]
[1764551844116,0.7,128.97,128.96,3.5]
[1764551844500,17.56211526,129.0,128.96,3.5]
[1764551844699,0.7,128.99,128.96,3.5]
[1764551844899,7.70147875,128.97,128.94,7.75511715]
[1764551845089,7.70147875,128.95,128.86,16.570305]
[1764551845291,7.70147875,128.94,128.9,7.70147875]
[1764551845493,7.70147875,128.94,128.91,3.5]
[1764551845699,8.40147875,128.95,128.91,3.5]
[1764551846100,8.80994492,128.98,128.92,16.998864]
[1764551846101,15.45495159,128.98,128.92,16.998864]
[1764551846314,7.75347284,128.98,128.94,7.70147875]
[1764551846618,7.75347284,128.98,128.92,16.998864]
[1764551846619,17.15385474,129.0,128.95,11.20147875]
[1764551847121,0.7,128.99,128.96,7.75434243]
[1764551847316,7.70147875,128.98,128.95,3.5]
[1764551847513,17.26305278,128.99,128.95,3.5]
[1764551847711,0.7,128.98,128.95,11.25470111]
[1764551847920,7.70147875,128.97,128.94,24.06424214]
[1764551848123,7.70147875,128.97,128.96,3.5]
[1764551848612,17.21142367,128.97,128.96,3.5]
[1764551848833,17.21142367,128.97,128.91,0.69]
[1764551848834,17.21142367,128.97,128.95,3.5]
[1764551849120,7.70147875,128.96,128.95,3.5]
[1764551849321,8.40147875,128.96,128.95,3.5]
[1764551849524,16.15582118,128.96,128.95,2.57]
[1764551849725,8.80994492,128.91,128.84,7.76156473]
[1764551849933,7.70147875,128.88,128.85,3.5]
[1764551850097,9.40994492,128.91,128.85,4.19]
[1764551850301,7.70147875,128.89,128.85,3.5]
[1764551850504,7.70147875,128.88,128.84,0.69]
[1764551850801,7.70147875,128.88,128.85,3.5]
[1764551851009,7.70147875,128.87,128.83,0.2]
[1764551851216,15.46102481,128.88,128.86,3.5]
[1764551851517,7.70147875,128.88,128.86,3.5]
[1764551851924,17.11142367,128.87,128.83,0.2]
[1764551852108,9.40994492,128.87,128.84,3.5]
[1764551852311,7.70147875,128.86,128.84,3.5]
[1764551852813,9.40994492,128.89,128.84,3.5]
[1764551853119,9.40994492,128.89,128.83,0.2]
[1764551853120,7.70147875,128.85,128.83,0.2]
[1764551853298,15.46304348,128.84,128.83,0.2]
[1764551853501,15.46304348,128.84,128.83,0.1]
[1764551853502,24.2729884,128.84,128.83,0.1]
[1764551853702,8.80994492,128.83,128.79,3.5]
[1764551853902,7.70147875,128.81,128.79,3.5]
[1764551854122,7.70147875,128.84,128.8,0.69]
[1764551854321,0.4,128.88,128.81,16.308864]
[1764551854530,7.70147875,128.86,128.81,24.01034275]
[1764551854722,7.70147875,128.86,128.81,24.70034275]
[1764551854921,7.70147875,128.86,128.82,0.69]
[1764551855117,8.80994492,128.87,128.83,3.5]
[1764551855428,7.70147875,128.86,128.84,3.5]
[1764551855925,8.80994492,128.87,128.84,3.5]
[1764551856127,7.70147875,128.86,128.84,3.5]
[1764551856620,8.10147875,128.85,128.8,7.70147875]
[1764551856821,7.70147875,128.83,128.81,3.5]
[1764551857216,7.76216719,128.83,128.79,0.69]
[1764551857417,7.76216719,128.83,128.81,3.5]
[1764551857418,7.70147875,128.82,128.81,3.5]
[1764551857612,16.91142367,128.82,128.77,0.2]
[1764551857816,7.70147875,128.78,128.77,0.2]
[1764551858013,8.80994492,128.8,128.77,0.2]
[1764551858208,7.70147875,128.8,128.77,0.89]
[1764551858926,7.70147875,128.81,128.77,8.65568948]
[1764551859227,7.70147875,128.78,128.77,0.2]
[1764551859429,32.82028767,128.78,128.77,0.1]
[1764551859620,33.02028767,128.78,128.71,3.5]
[1764551859925,7.70147875,128.73,128.71,3.5]
[1764551860110,7.70147875,128.74,128.71,3.5]
[1764551860311,7.70147875,128.72,128.71,3.5]
[1764551860927,7.70147875,128.73,128.71,3.5]
[1764551861335,7.70147875,128.74,128.71,4.19]
[1764551861637,7.70147875,128.75,128.71,11.95917011]
[1764551862129,7.70147875,128.75,128.72,0.69]
[1764551862723,7.70147875,128.75,128.71,11.26917011]
[1764551863023,7.70147875,128.75,128.71,11.95917011]
[1764551863223,32.88492213,128.77,128.72,0.69]
[1764551863224,7.70147875,128.76,128.72,0.69]
[1764551863436,24.01034275,128.77,128.72,0.69]
[1764551863928,7.70147875,128.74,128.71,7.76917011]
[1764551864134,7.70147875,128.73,128.72,3.5]
[1764551864523,9.00994492,128.76,128.72,3.5]
[1764551864723,7.70147875,128.74,128.72,3.5]
[1764551865038,16.51142367,128.73,128.7,3.5]
[1764551865231,7.70147875,128.71,128.7,3.5]
[1764551865627,7.70147875,128.71,128.69,3.72]
[1764551866040,7.70147875,128.71,128.69,0.2]
[1764551866041,16.51142367,128.7,128.69,0.2]
[1764551866216,16.71142367,128.7,128.69,0.2]
[1764551866411,9.00994492,128.7,128.69,0.2]
[1764551866626,16.71142367,128.7,128.69,0.2]
[1764551866835,8.80994492,128.7,128.69,0.1]
[1764551867061,8.80994492,128.71,128.69,0.1]
[1764551867356,7.76833252,128.73,128.69,0.79]
[1764551867523,15.46981127,128.73,128.7,3.52]
[1764551867733,7.70147875,128.72,128.69,0.79]
[1764551867930,7.70147875,128.72,128.69,4.31]
[1764551868326,7.76833252,128.73,128.69,4.31]
[1764551868553,16.51142367,128.72,128.69,4.31]
[1764551869829,7.70147875,128.73,128.69,11.39012512]
[1764551870036,7.70147875,128.73,128.69,12.08012512]
[1764551870732,7.70147875,128.72,128.69,4.31]
[1764551871245,7.70147875,128.73,128.69,12.08059992]
[1764551871625,7.70147875,128.73,128.7,0.69]
[1764551871931,15.46967922,128.73,128.7,0.69]
[1764551872132,7.70147875,128.72,128.7,0.69]
[1764551872334,15.46974781,128.73,128.7,0.69]
[1764551873147,7.70147875,128.73,128.7,8.45984682]
[1764551873538,3.62,128.79,128.71,0.69]
[1764551873737,7.70147875,128.76,128.71,8.39147875]
[1764551874053,7.70147875,128.75,128.71,0.69]
[1764551874551,7.70147875,128.76,128.72,4.21]
[1764551874728,15.46817654,128.76,128.73,0.69]
[1764551874929,15.46817654,128.76,128.73,3.52]
[1764551874930,7.70147875,128.74,128.73,3.52]
[1764551875226,7.70147875,128.75,128.73,3.52]
[1764551875627,7.70147875,128.76,128.73,4.21]
[1764551876356,16.51142367,128.77,128.73,3.52]
[1764551876652,38.81293229,128.83,128.75,7.70147875]
[1764551876653,7.70147875,128.8,128.75,7.70147875]
[1764551876849,7.70147875,128.8,128.76,7.76638707]
[1764551877049,7.76378102,128.81,128.76,7.76638707]
[1764551877050,7.70147875,128.81,128.77,3.52]
[1764551877248,16.308864,128.83,128.77,4.22]
[1764551877446,0.1,128.85,128.78,0.7]
[1764551877645,7.70147875,128.85,128.79,7.70147875]
[1764551878035,7.70147875,128.85,128.8,8.40147875]
[1764551878258,7.70147875,128.85,128.81,3.52]
[1764551878455,7.70147875,128.83,128.78,8.40147875]
[1764551878658,7.70147875,128.81,128.79,3.52]
[1764551878872,15.46492581,128.81,128.79,3.52]
[1764551879933,16.51142367,128.83,128.8,0.7]
[1764551880350,16.51142367,128.83,128.79,3.52]
[1764551880551,16.51142367,128.83,128.79,4.22]
[1764551880856,7.70147875,128.8,128.76,0.7]
[1764551881033,7.70147875,128.81,128.76,16.16772964]
[1764551881345,7.76338299,128.81,128.77,3.52]
[1764551881543,7.76338299,128.81,128.77,4.22]
[1764551881759,15.46486174,128.81,128.78,0.7]
[1764551882532,7.76338299,128.81,128.78,0.7]
[1764551883058,7.70147875,128.8,128.75,8.40147875]
[1764551883236,7.70147875,128.8,128.76,3.52]
[1764551883536,7.70147875,128.8,128.76,4.22]
[1764551883860,7.70147875,128.8,128.77,0.7]
[1764551884150,15.46547605,128.8,128.77,0.7]
[1764551884530,7.7639973,128.8,128.77,0.7]
[1764551884931,15.46547605,128.8,128.77,0.7]
[1764551885237,15.46547605,128.8,128.76,3.52]
[1764551885238,7.70147875,128.78,128.76,3.52]
[1764551885642,16.51142367,128.79,128.76,4.22]
[1764551886461,7.76518092,128.78,128.76,4.22]
[1764551887338,7.76518092,128.78,128.77,3.52]
[1764551887543,7.76457017,128.8,128.77,4.22]
[1764551887746,7.76457017,128.8,128.78,0.7]
[1764551888044,15.46604892,128.8,128.77,4.22]
[1764551889042,7.76457017,128.8,128.77,4.22]
[1764551889362,7.70147875,128.81,128.77,3.52]
[1764551889541,7.76332242,128.82,128.78,8.40147875]
[1764551889740,15.46480117,128.82,128.79,3.52]
[1764551889954,15.46480117,128.82,128.79,4.22]
[1764551890151,15.46480117,128.82,128.8,3.52]
[1764551890355,0.1,128.9,128.81,7.70147875]
[1764551890540,0.1,128.93,128.85,7.70147875]
[1764551890740,7.70147875,128.92,128.86,11.22147875]
[1764551890938,7.70147875,128.89,128.84,8.40147875]
[1764551891150,7.70147875,128.89,128.87,3.52]
[1764551891468,7.70147875,128.88,128.85,0.7]
[1764551891655,7.70147875,128.88,128.86,3.52]
[1764551892166,25.11880892,128.86,128.78,0.7]
[1764551892338,7.70147875,128.8,128.74,0.7]
[1764551892538,7.70147875,128.8,128.75,7.70147875]
[1764551892765,7.70147875,128.8,128.75,11.22147875]
[1764551892937,8.80994492,128.81,128.76,0.7]
[1764551893136,7.70147875,128.79,128.76,0.7]
[1764551893340,8.80994492,128.79,128.77,3.52]
[1764551893648,7.76397515,128.8,128.76,3.52]
[1764551893649,7.70147875,128.78,128.76,3.52]
[1764551893855,8.80994492,128.75,128.72,3.52]
[1764551894055,25.11880892,128.79,128.72,3.52]
[1764551894355,7.70147875,128.77,128.73,0.7]
[1764551894668,7.70147875,128.76,128.73,0.7]
[1764551894845,25.11880892,128.79,128.73,0.7]
[1764551895043,7.70147875,128.78,128.73,0.7]
[1764551895243,7.70147875,128.77,128.73,0.7]
[1764551895466,7.70147875,128.77,128.73,8.46818544]
[1764551895764,19.828864,128.81,128.74,0.7]
[1764551895765,8.80994492,128.8,128.74,0.7]
[1764551896265,7.70147875,128.79,128.74,0.7]
[1764551896567,7.70147875,128.79,128.74,8.40147875]
[1764551896957,7.70147875,128.79,128.75,0.7]
[1764551897156,15.46680351,128.78,128.76,3.52]
[1764551898459,16.51142367,128.8,128.76,11.98627148]
[1764551898664,16.51142367,128.8,128.76,4.22]
[1764551899061,24.27547307,128.8,128.76,4.22]
[1764551899256,16.51142367,128.8,128.76,11.28626148]
[1764551899460,16.408864,128.83,128.77,0.7]
[1764551899461,7.70147875,128.81,128.77,0.7]
[1764551900050,7.70147875,128.79,128.76,3.52]
[1764551900244,7.70147875,128.79,128.77,3.52]
[1764551900459,12.10465649,128.79,128.77,3.52]
[1764551900868,12.10465649,128.78,128.72,16.308864]
[1764551901061,12.10465649,128.77,128.73,16.32465649]
[1764551901252,12.10465649,128.77,128.73,11.98801245]
[1764551901458,12.10465649,128.77,128.74,0.7]
[1764551902049,16.57561927,128.78,128.74,0.7]
[1764551902050,28.68027576,128.78,128.74,0.7]
[1764551902367,24.07332747,128.8,128.75,15.62465649]
[1764551902683,8.80994492,128.81,128.76,12.10465649]
[1764551902684,36.17707414,128.81,128.76,12.10465649]
[1764551902980,36.17707414,128.81,128.76,12.80465649]
[1764551903149,19.86821014,128.81,128.77,0.7]
[1764551903458,12.10465649,128.8,128.77,8.46560835]
[1764551903658,19.86821014,128.81,128.77,8.46560835]
[1764551903967,7.76355365,128.81,128.77,8.46560835]
[1764551904163,19.86821014,128.81,128.77,8.46560835]
[1764551905475,7.76355365,128.81,128.77,19.87026484]
[1764551905671,24.07144471,128.83,128.78,8.43482405]
[1764551905862,36.1761012,128.83,128.79,3.52]
[1764551906064,36.1761012,128.83,128.79,4.19]
[1764551906248,36.1761012,128.83,128.8,0.67]
[1764551907175,8.80994492,128.84,128.8,0.67]
[1764551907365,12.10465649,128.83,128.79,7.76444519]
[1764551907570,12.10465649,128.83,128.8,3.52]
[1764551908064,12.10465649,128.88,128.82,12.10465649]
[1764551908374,39.26118586,128.89,128.84,12.10465649]
[1764551908690,0.2,128.91,128.87,12.10465649]
[1764551908691,7.85787454,128.91,128.87,12.10465649]
[1764551908982,0.1,128.91,128.9,12.10465649]
[1764551909178,0.1,128.91,128.9,3.52]
[1764551909560,0.1,128.91,128.87,16.308864]
[1764551909781,12.20465649,128.91,128.87,0.67]
[1764551909958,12.20465649,128.91,128.88,3.52]
[1764551910679,12.20465649,128.91,128.87,3.52]
[1764551910680,12.10465649,128.89,128.87,3.52]
[1764551911077,12.10465649,128.9,128.87,3.52]
[1764551911583,0.1,128.91,128.88,0.67]
[1764551911878,0.1,128.91,128.9,12.10465649]
[1764551912179,0.1,128.91,128.88,0.67]
[1764551912478,0.1,128.91,128.89,3.5]
[1764551912776,19.96214815,128.91,128.89,3.5]
[1764551913367,0.1,128.91,128.89,3.5]
[1764551913754,19.96224221,128.91,128.88,3.5]
[1764551913960,12.10465649,128.9,128.88,3.5]
[1764551914357,12.10465649,128.89,128.86,0.67]
[1764551914554,12.10465649,128.88,128.83,20.536734]
[1764551914781,12.10465649,128.88,128.84,4.17]
[1764551914961,12.10465649,128.88,128.85,0.67]
[1764551915472,20.91460141,128.89,128.85,0.67]
[1764551915673,20.91460141,128.89,128.85,8.43075838]
[1764551915871,28.67337048,128.89,128.85,8.43075838]
[1764551917080,12.10465649,128.89,128.86,0.67]
[1764551917381,0.1,128.91,128.88,12.10465649]
[1764551917559,0.1,128.91,128.89,3.5]
[1764551917877,0.1,128.91,128.89,0.67]
[1764551918076,0.1,128.91,128.79,50.92466633]
[1764551918077,8.80994492,128.87,128.82,0.67]
[1764551918255,12.10465649,128.86,128.83,3.5]
[1764551918459,20.91460141,128.87,128.83,3.5]
[1764551918681,8.80994492,128.87,128.83,4.17]
[1764551918858,20.91460141,128.87,128.84,0.67]
[1764551919056,28.41352049,128.9,128.85,12.10465649]
[1764551919365,0.1,128.91,128.86,12.10465649]
[1764551919679,0.1,128.91,128.9,12.10465649]
[1764551920178,0.1,128.91,128.9,0.67]
[1764551920484,0.1,128.91,128.9,3.5]
[1764551920981,0.1,128.91,128.9,4.17]
[1764551921373,0.1,128.91,128.88,7.7591076]
[1764551921578,12.20465649,128.91,128.89,3.5]
[1764551922086,0.1,128.91,128.89,4.17]
[1764551922685,0.1,128.91,128.9,0.67]
[1764551923166,0.1,128.91,128.9,20.53260839]
[1764551924383,0.1,128.91,128.9,24.03260839]
[1764551924587,0.1,128.91,128.9,8.4279519]
[1764551924791,0.1,128.91,128.9,11.9279519]
[1764551925483,0.1,128.91,128.89,7.75851254]
[1764551925676,0.1,128.91,128.9,3.5]
[1764551926675,0.1,128.91,128.9,4.17]
[1764551927376,12.10465649,128.96,128.9,27.82283165]
[1764551927579,12.10465649,128.95,128.91,4.17]
[1764551927767,12.10465649,128.96,128.91,16.27465649]
[1764551928183,12.10465649,128.96,128.92,0.67]
[1764551928480,7.75423589,128.97,128.92,0.67]
[1764551928687,19.85889238,128.97,128.92,12.77465649]
[1764551929196,19.85889238,128.97,128.91,3.5]
[1764551929197,19.85889238,128.97,128.93,0.67]
[1764551929484,12.10465649,128.96,128.94,3.5]
[1764551929677,12.10465649,128.95,128.92,7.75656743]
[1764551929989,12.10465649,128.95,128.93,3.5]
[1764551930578,12.10465649,128.96,128.93,4.17]
[1764551930977,16.6625691,128.99,128.94,0.67]
[1764551931279,12.10465649,128.97,128.95,7.75494377]
[1764551931475,12.10465649,128.97,128.96,3.5]
[1764551931990,12.10465649,128.98,128.96,3.5]
[1764551932189,0.1,128.99,128.96,4.17]
[1764551932371,12.10465649,128.98,128.96,4.17]
[1764551932776,12.20465649,128.99,128.96,3.5]
[1764551933092,0.1,128.99,128.97,0.67]
[1764551933393,0.1,128.99,128.98,7.75314002]
[1764551933765,0.1,128.99,128.98,8.42314002]
[1764551933971,0.1,128.99,128.98,0.67]
[1764551934193,12.40465649,128.99,128.92,0.67]
[1764551934387,12.10465649,128.97,128.93,4.17]
[1764551934768,0.1,128.99,128.95,16.308864]
[1764551934983,0.1,128.99,128.96,15.60465649]
[1764551935295,0.1,128.99,128.96,16.27465649]
[1764551935472,0.1,128.99,128.97,8.42374118]
[1764551935877,0.1,128.99,128.98,0.68]
[1764551936081,12.20465649,128.99,128.98,3.5]
[1764551936283,12.20465649,128.99,128.95,28.41352049]
[1764551936481,0.1,128.99,128.96,4.18]
[1764551937490,0.1,128.99,128.96,24.03881969]
[1764551937788,0.1,128.99,128.96,11.9341632]
[1764551938689,0.1,128.99,128.96,0.68]
[1764551938918,0.1,128.99,128.97,3.5]
[1764551939072,12.10465649,128.98,128.97,3.5]
[1764551939272,12.20465649,128.99,128.97,3.5]
[1764551940373,7.75314002,128.98,128.97,3.5]
[1764551940575,28.86774143,128.98,128.92,7.75646374]
[1764551940790,20.91460141,128.95,128.9,19.86235327]
[1764551940983,12.10465649,128.92,128.9,3.5]
[1764551941188,16.508864,128.97,128.91,0.68]
[1764551941411,16.508864,128.97,128.91,12.78465649]
[1764551941583,12.10465649,128.96,128.91,12.78465649]
[1764551941778,12.10465649,128.94,128.9,3.5]
[1764551941978,12.10465649,128.94,128.91,3.5]
[1764551942186,19.86070832,128.94,128.91,3.5]
[1764551942385,7.75516041,128.95,128.92,0.68]
[1764551942585,19.8598169,128.95,128.91,11.93707709]
[1764551943490,12.10465649,128.94,128.89,19.8629192]
[1764551943689,7.75314002,128.98,128.93,12.10465649]
[1764551943899,7.75314002,128.98,128.95,12.10465649]
[1764551944100,13.62944477,129.0,128.96,15.60465649]
[1764551944300,5.87705,129.0,128.98,12.10465649]
[1764551944710,5.87705,129.0,128.98,12.78465649]
[1764551945206,5.87705,129.0,128.98,0.68]
[1764551945499,5.87705,129.0,128.98,3.5]
[1764551945701,5.87705,129.0,128.98,4.18]
[1764551945875,5.87705,129.0,128.98,16.28465649]
[1764551946501,5.87705,129.0,128.98,24.03779651]
[1764551949188,5.87705,129.0,128.98,28.24200402]
[1764551949385,5.87705,129.0,128.99,12.78465649]
[1764551949602,5.87705,129.0,128.99,16.28465649]
[1764551949805,4.43705,129.0,128.99,16.28465649]
[1764551951218,4.43705,129.0,128.99,24.03719544]
[1764551951391,4.43705,129.0,128.99,32.84714036]
[1764551951716,1e-08,129.0,128.99,32.84714036]
[1764551953387,0.1,129.03,129.01,16.308864]
[1764551953617,0.1,129.03,129.02,15.60465649]
[1764551953931,0.1,129.03,129.02,16.28465649]
[1764551954900,0.1,129.03,129.02,25.09460141]
[1764551955305,0.1,129.05,129.04,28.41352049]
[1764551955506,0.1,129.05,129.04,36.16305551]
[1764551956115,0.1,129.05,129.04,39.66305551]
[1764551956289,0.8,129.05,128.99,7.75231203]
[1764551956488,12.10465649,129.04,128.99,19.85696852]
[1764551956695,12.90465649,129.05,129.0,15.60465649]
[1764551956904,0.7,129.04,129.0,15.60465649]
[1764551957302,0.7,129.04,128.94,1.99999999]
[1764551957303,12.10465649,129.01,128.94,7.75500228]
[1764551957499,12.10465649,128.98,128.91,0.68]
[1764551957703,0.7,129.0,128.96,12.10465649]
[1764551957995,0.7,129.0,128.97,3.5]
[1764551958404,12.10465649,128.99,128.94,28.41352049]
[1764551958610,12.80465649,129.0,128.95,15.60465649]
[1764551958907,0.7,128.99,128.96,3.5]